[Event "Live Chess"]
[Site "Chess.com"]
[Date "2023.05.21"]
[Round "-"]
[White "domrobson"]
[Black "Tushinskiy"]
[Result "0-1"]
[WhiteElo "1755"]
[BlackElo "2179"]
[TimeControl "300"]
[EndTime "19:00:15 PDT"]
[Termination "Tushinskiy won by resignation"]

1. d4 {[%clk 0:04:58.6]} 1... d5 {[%clk 0:04:59]} 2. c4 {[%clk 0:04:57.7]} 2...
c6 {[%clk 0:04:58.9]} 3. Nf3 {[%clk 0:04:56.9]} 3... Nf6 {[%clk 0:04:57.7]} 4.
Nc3 {[%clk 0:04:56.1]} 4... e6 {[%clk 0:04:57.1]} 5. Bg5 {[%clk 0:04:54.1]} 5...
Be7 {[%clk 0:04:55.3]} 6. e3 {[%clk 0:04:52.3]} 6... Nbd7 {[%clk 0:04:54.8]} 7.
Rc1 {[%clk 0:04:51.1]} 7... O-O {[%clk 0:04:54.3]} 8. Bd3 {[%clk 0:04:50.1]}
8... Re8 {[%clk 0:04:53.7]} 9. O-O {[%clk 0:04:49.2]} 9... Nf8 {[%clk
0:04:53.1]} 10. Ne5 {[%clk 0:04:47]} 10... N6d7 {[%clk 0:04:52.1]} 11. Bxe7
{[%clk 0:04:45.3]} 11... Qxe7 {[%clk 0:04:52]} 12. f4 {[%clk 0:04:44.2]} 12...
f6 {[%clk 0:04:51]} 13. Nxd7 {[%clk 0:04:43.1]} 13... Bxd7 {[%clk 0:04:50.9]}
14. Qb3 {[%clk 0:04:40.1]} 14... Rab8 {[%clk 0:04:48.9]} 15. cxd5 {[%clk
0:04:35.9]} 15... cxd5 {[%clk 0:04:46.8]} 16. Rc2 {[%clk 0:04:22.4]} 16... a6
{[%clk 0:04:43]} 17. Rfc1 {[%clk 0:04:20.9]} 17... b5 {[%clk 0:04:42]} 18. Ne2
{[%clk 0:04:19.5]} 18... a5 {[%clk 0:04:35]} 19. Rc7 {[%clk 0:04:16.7]} 19... a4
{[%clk 0:04:33.8]} 20. Qd1 {[%clk 0:04:09.7]} 20... e5 {[%clk 0:04:30.6]} 21.
fxe5 {[%clk 0:04:06.8]} 21... fxe5 {[%clk 0:04:30.5]} 22. dxe5 {[%clk
0:04:04.6]} 22... Qxe5 {[%clk 0:04:30.4]} 23. Ng3 {[%clk 0:03:36.4]} 23... Qxe3+
{[%clk 0:04:27.7]} 24. Kh1 {[%clk 0:03:35.9]} 24... Re5 {[%clk 0:04:11.9]} 25.
Qc2 {[%clk 0:03:27.7]} 25... Rbe8 {[%clk 0:04:08]} 26. Nf1 {[%clk 0:03:11.6]}
26... Qf4 {[%clk 0:03:56.6]} 27. Qc3 {[%clk 0:02:42.1]} 27... b4 {[%clk
0:03:38.4]} 28. Qc2 {[%clk 0:02:34.7]} 28... Re1 {[%clk 0:03:33.2]} 29. h3
{[%clk 0:02:18.8]} 29... Bxh3 {[%clk 0:03:17.8]} 30. gxh3 {[%clk 0:02:07.4]}
30... Rxc1 {[%clk 0:03:15.5]} 31. Qxc1 {[%clk 0:02:00.2]} 31... Qf3+ {[%clk
0:03:14]} 32. Kh2 {[%clk 0:01:59.2]} 32... Qxd3 {[%clk 0:03:13.4]} 33. Rc2
{[%clk 0:01:54.6]} 33... Ng6 {[%clk 0:03:09.8]} 34. Rg2 {[%clk 0:01:49.6]} 34...
b3 {[%clk 0:03:00.2]} 35. axb3 {[%clk 0:01:48.2]} 35... axb3 {[%clk 0:03:00.1]}
36. Qd2 {[%clk 0:01:43.4]} 36... Qxf1 {[%clk 0:02:55]} 37. Qxd5+ {[%clk
0:01:40]} 37... Kh8 {[%clk 0:02:51.9]} 38. Qxb3 {[%clk 0:01:38.4]} 38... Qf4+
{[%clk 0:02:47.5]} 39. Qg3 {[%clk 0:01:35.2]} 39... Rb8 {[%clk 0:02:45.2]} 40.
Qxf4 {[%clk 0:01:32.6]} 40... Nxf4 {[%clk 0:02:45.1]} 41. Rf2 {[%clk 0:01:29]}
41... g5 {[%clk 0:02:43.5]} 42. Rd2 {[%clk 0:01:21.7]} 42... Rb3 {[%clk
0:02:40.1]} 0-1

[Event "Live Chess"]
[Site "Chess.com"]
[Date "2023.05.21"]
[Round "-"]
[White "LiamBellwood"]
[Black "GEMdzq"]
[Result "0-1"]
[WhiteElo "2026"]
[BlackElo "2270"]
[TimeControl "300"]
[EndTime "19:00:45 PDT"]
[Termination "GEMdzq won by resignation"]

1. d4 {[%clk 0:04:57.8]} 1... Nf6 {[%clk 0:04:58.1]} 2. Nc3 {[%clk 0:04:57.4]}
2... e6 {[%clk 0:04:57]} 3. Bf4 {[%clk 0:04:57.1]} 3... c5 {[%clk 0:04:55.8]} 4.
d5 {[%clk 0:04:56.2]} 4... exd5 {[%clk 0:04:50.2]} 5. Nxd5 {[%clk 0:04:56.1]}
5... Nxd5 {[%clk 0:04:48.8]} 6. Qxd5 {[%clk 0:04:56]} 6... Nc6 {[%clk
0:04:47.3]} 7. e4 {[%clk 0:04:47]} 7... d6 {[%clk 0:04:45.8]} 8. O-O-O {[%clk
0:04:40.8]} 8... Be6 {[%clk 0:04:44.8]} 9. Qd2 {[%clk 0:04:38.5]} 9... Qb6
{[%clk 0:04:09.6]} 10. Kb1 {[%clk 0:04:13.5]} 10... O-O-O {[%clk 0:04:07.2]} 11.
Ne2 {[%clk 0:04:02.7]} 11... d5 {[%clk 0:04:03.2]} 12. Qe3 {[%clk 0:03:27.2]}
12... d4 {[%clk 0:03:57.5]} 13. Qg3 {[%clk 0:03:19.4]} 13... c4 {[%clk
0:03:54.6]} 14. Nc1 {[%clk 0:03:12.1]} 14... h5 {[%clk 0:03:42.4]} 15. Be2
{[%clk 0:02:48.3]} 15... h4 {[%clk 0:03:39.8]} 16. Qg5 {[%clk 0:02:37.1]} 16...
f6 {[%clk 0:03:33.9]} 17. Qg6 {[%clk 0:02:21.3]} 17... Ne7 {[%clk 0:03:31.6]}
0-1

[Event "Live Chess"]
[Site "Chess.com"]
[Date "2023.05.21"]
[Round "-"]
[White "Duke_of_Bebington"]
[Black "smoggyrabbit"]
[Result "1-0"]
[WhiteElo "1584"]
[BlackElo "1737"]
[TimeControl "300"]
[EndTime "19:01:20 PDT"]
[Termination "Duke_of_Bebington won on time"]

1. e4 {[%clk 0:04:56.9]} 1... e6 {[%clk 0:04:59]} 2. d4 {[%clk 0:04:55.4]} 2...
d5 {[%clk 0:04:58.2]} 3. Nd2 {[%clk 0:04:54.9]} 3... c5 {[%clk 0:04:56.3]} 4. c3
{[%clk 0:04:50.5]} 4... cxd4 {[%clk 0:04:54.9]} 5. cxd4 {[%clk 0:04:49.2]} 5...
dxe4 {[%clk 0:04:54]} 6. Nxe4 {[%clk 0:04:48.7]} 6... Bb4+ {[%clk 0:04:52.2]} 7.
Bd2 {[%clk 0:04:47.5]} 7... Bxd2+ {[%clk 0:04:46.5]} 8. Qxd2 {[%clk 0:04:46.1]}
8... Nf6 {[%clk 0:04:37.4]} 9. Bd3 {[%clk 0:04:42.2]} 9... Nc6 {[%clk
0:04:33.6]} 10. Nf3 {[%clk 0:04:40.7]} 10... O-O {[%clk 0:04:31.2]} 11. O-O
{[%clk 0:04:31.8]} 11... Nxe4 {[%clk 0:04:15.8]} 12. Bxe4 {[%clk 0:04:29.2]}
12... f5 {[%clk 0:04:08.3]} 13. Bxc6 {[%clk 0:04:23.2]} 13... bxc6 {[%clk
0:04:07.1]} 14. Ne5 {[%clk 0:04:22.1]} 14... Qh4 {[%clk 0:03:47.2]} 15. f4
{[%clk 0:04:12.4]} 15... Bb7 {[%clk 0:03:35.9]} 16. Rac1 {[%clk 0:04:03.8]}
16... Rac8 {[%clk 0:03:02.9]} 17. Qe2 {[%clk 0:04:01.7]} 17... Rfd8 {[%clk
0:02:52.3]} 18. Rfd1 {[%clk 0:03:59.8]} 18... Qxf4 {[%clk 0:02:46]} 19. Qh5
{[%clk 0:03:47.8]} 19... Rc7 {[%clk 0:02:15.2]} 20. Nf3 {[%clk 0:03:12.7]} 20...
Rcd7 {[%clk 0:01:02.2]} 21. Ng5 {[%clk 0:02:56.5]} 21... g6 {[%clk 0:00:40.8]}
22. Qh6 {[%clk 0:02:48.4]} 22... e5 {[%clk 0:00:23.4]} 23. Rf1 {[%clk
0:01:38.6]} 23... Qxd4+ {[%clk 0:00:19]} 24. Kh1 {[%clk 0:01:37]} 24... Ba6
{[%clk 0:00:16.1]} 25. Rfe1 {[%clk 0:01:34.7]} 25... Qxb2 {[%clk 0:00:12]} 26.
Rxc6 {[%clk 0:01:14.5]} 26... Bb7 {[%clk 0:00:10.7]} 27. Rxg6+ {[%clk
0:01:10.3]} 27... hxg6 {[%clk 0:00:07.7]} 28. Qxg6+ {[%clk 0:01:10.2]} 28... Kf8
{[%clk 0:00:06.9]} 29. Qf6+ {[%clk 0:01:07]} 29... Kg8 {[%clk 0:00:06]} 30. Qg6+
{[%clk 0:01:03]} 30... Kf8 {[%clk 0:00:05.4]} 31. Qh6+ {[%clk 0:01:02.3]} 31...
Ke8 {[%clk 0:00:04.4]} 32. Qh8+ {[%clk 0:00:56.8]} 32... Ke7 {[%clk 0:00:03.7]}
33. Rxe5+ {[%clk 0:00:52.5]} 33... Kd6 {[%clk 0:00:02]} 34. Qf6+ {[%clk
0:00:46.9]} 34... Kc7 {[%clk 0:00:01.3]} 35. Rc5+ {[%clk 0:00:32.7]} 1-0

[Event "Live Chess"]
[Site "Chess.com"]
[Date "2023.05.21"]
[Round "-"]
[White "raminguy"]
[Black "xx_blindpuffin_xx"]
[Result "1-0"]
[WhiteElo "1961"]
[BlackElo "2187"]
[TimeControl "300"]
[EndTime "19:01:27 PDT"]
[Termination "raminguy won by checkmate"]

1. d4 {[%clk 0:04:59.3]} 1... d6 {[%clk 0:04:29.1]} 2. Nc3 {[%clk 0:04:57.3]}
2... Nd7 {[%clk 0:04:26.5]} 3. e4 {[%clk 0:04:48.7]} 3... c5 {[%clk 0:04:25.4]}
4. Nf3 {[%clk 0:04:46.4]} 4... cxd4 {[%clk 0:04:23.8]} 5. Nxd4 {[%clk
0:04:45.4]} 5... Ngf6 {[%clk 0:04:22.4]} 6. Be3 {[%clk 0:04:43.6]} 6... g6
{[%clk 0:04:14.1]} 7. Qd2 {[%clk 0:04:31.3]} 7... Bg7 {[%clk 0:04:12.7]} 8.
O-O-O {[%clk 0:04:30.4]} 8... O-O {[%clk 0:04:08.9]} 9. f3 {[%clk 0:04:29.1]}
9... a6 {[%clk 0:04:06.4]} 10. Bh6 {[%clk 0:04:26.8]} 10... b5 {[%clk 0:04:04]}
11. h4 {[%clk 0:04:25.5]} 11... Bb7 {[%clk 0:03:54.9]} 12. h5 {[%clk 0:04:23.8]}
12... Nc5 {[%clk 0:03:32.5]} 13. hxg6 {[%clk 0:04:20]} 13... fxg6 {[%clk
0:03:23]} 14. Bxg7 {[%clk 0:04:18.6]} 14... Kxg7 {[%clk 0:03:22.9]} 15. Qh6+
{[%clk 0:04:17.4]} 15... Kg8 {[%clk 0:03:20.9]} 16. e5 {[%clk 0:04:04.6]} 16...
dxe5 {[%clk 0:03:09.9]} 17. Ne6 {[%clk 0:04:03.2]} 17... Nxe6 {[%clk 0:03:08.3]}
18. Rxd8 {[%clk 0:04:00.9]} 18... Raxd8 {[%clk 0:03:06.1]} 19. Bd3 {[%clk
0:03:57.5]} 19... Nf4 {[%clk 0:03:01.4]} 20. Ne4 {[%clk 0:03:52.4]} 20... Nxd3+
{[%clk 0:02:57.2]} 21. cxd3 {[%clk 0:03:51.2]} 21... Rxd3 {[%clk 0:02:56.2]} 22.
Nxf6+ {[%clk 0:03:50]} 22... exf6 {[%clk 0:02:51.3]} 23. Qxh7# {[%clk
0:03:48.5]} 1-0

[Event "Live Chess"]
[Site "Chess.com"]
[Date "2023.05.21"]
[Round "-"]
[White "NateSolon"]
[Black "chessfiction"]
[Result "0-1"]
[WhiteElo "2642"]
[BlackElo "2361"]
[TimeControl "300"]
[EndTime "19:01:41 PDT"]
[Termination "chessfiction won by resignation"]

1. d4 {[%clk 0:04:59]} 1... d5 {[%clk 0:04:57]} 2. Nc3 {[%clk 0:04:58.1]} 2...
c6 {[%clk 0:04:56.9]} 3. Bf4 {[%clk 0:04:56.5]} 3... Bg4 {[%clk 0:04:52.6]} 4.
f3 {[%clk 0:04:54.5]} 4... Bh5 {[%clk 0:04:51.1]} 5. g4 {[%clk 0:04:51.2]} 5...
Bg6 {[%clk 0:04:50]} 6. h4 {[%clk 0:04:50.4]} 6... h5 {[%clk 0:04:48.4]} 7. g5
{[%clk 0:04:49.3]} 7... Nd7 {[%clk 0:04:46]} 8. Qd2 {[%clk 0:04:41.3]} 8... e6
{[%clk 0:04:42.1]} 9. e4 {[%clk 0:04:32.9]} 9... Bb4 {[%clk 0:04:40.4]} 10. Bd3
{[%clk 0:04:31.3]} 10... Ne7 {[%clk 0:04:37.4]} 11. Nge2 {[%clk 0:04:27.1]}
11... O-O {[%clk 0:04:35.6]} 12. a3 {[%clk 0:04:25.5]} 12... Ba5 {[%clk
0:04:34.2]} 13. b4 {[%clk 0:04:07.9]} 13... Bc7 {[%clk 0:04:32.7]} 14. Bxc7
{[%clk 0:04:06.5]} 14... Qxc7 {[%clk 0:04:32.6]} 15. e5 {[%clk 0:04:05.9]} 15...
a5 {[%clk 0:04:27.5]} 16. O-O {[%clk 0:03:48.5]} 16... Nf5 {[%clk 0:04:23.5]}
17. Bxf5 {[%clk 0:03:43.4]} 17... Bxf5 {[%clk 0:04:23.4]} 18. Ng3 {[%clk
0:03:35.9]} 18... Bg6 {[%clk 0:04:21.1]} 19. f4 {[%clk 0:03:33.4]} 19... b6
{[%clk 0:04:15]} 20. Qe2 {[%clk 0:03:17.2]} 20... axb4 {[%clk 0:04:13.1]} 21.
axb4 {[%clk 0:03:16.6]} 21... c5 {[%clk 0:04:11]} 22. Nb5 {[%clk 0:03:11.4]}
22... Qc6 {[%clk 0:04:09.3]} 23. c3 {[%clk 0:02:53.6]} 23... cxd4 {[%clk
0:04:01.6]} 24. cxd4 {[%clk 0:02:52.1]} 24... Rxa1 {[%clk 0:04:00.3]} 25. Rxa1
{[%clk 0:02:50.8]} 25... Ra8 {[%clk 0:03:56.5]} 26. Rxa8+ {[%clk 0:02:38.3]}
26... Qxa8 {[%clk 0:03:56.4]} 27. Qb2 {[%clk 0:02:31.5]} 27... Qa4 {[%clk
0:03:52.9]} 28. Nc3 {[%clk 0:02:30.6]} 28... Qc6 {[%clk 0:03:50.1]} 29. Kf2
{[%clk 0:02:20.2]} 29... Qc4 {[%clk 0:03:45.7]} 30. Nge2 {[%clk 0:02:13.6]}
30... b5 {[%clk 0:03:41.9]} 31. Qa3 {[%clk 0:02:05.3]} 31... Bd3 {[%clk
0:03:34.2]} 32. Qa8+ {[%clk 0:01:57.8]} 32... Kh7 {[%clk 0:03:32.8]} 33. Qb7
{[%clk 0:01:55.2]} 33... Nf8 {[%clk 0:03:22.6]} 34. Qxf7 {[%clk 0:01:52.5]}
34... Ng6 {[%clk 0:03:16]} 35. Ke3 {[%clk 0:01:43.1]} 35... Bxe2 {[%clk
0:03:10.3]} 36. Nxe2 {[%clk 0:01:43]} 36... Qb3+ {[%clk 0:03:02.6]} 37. Kf2
{[%clk 0:01:42.2]} 37... Qh3 {[%clk 0:03:00.8]} 38. f5 {[%clk 0:01:25.6]} 38...
Qxh4+ {[%clk 0:02:54.8]} 39. Kf1 {[%clk 0:01:19.8]} 39... Qh3+ {[%clk
0:02:46.6]} 40. Ke1 {[%clk 0:01:12.7]} 40... exf5 {[%clk 0:02:41.3]} 41. e6
{[%clk 0:01:08.2]} 41... Qh4+ {[%clk 0:02:38.7]} 42. Kd1 {[%clk 0:01:07.2]}
42... Qxg5 {[%clk 0:02:35.8]} 0-1

[Event "Live Chess"]
[Site "Chess.com"]
[Date "2023.05.21"]
[Round "-"]
[White "grillage"]
[Black "ClassyChameleon"]
[Result "1-0"]
[WhiteElo "1807"]
[BlackElo "1084"]
[TimeControl "300"]
[EndTime "19:01:53 PDT"]
[Termination "grillage won by resignation"]

1. d4 {[%clk 0:04:59.3]} 1... d5 {[%clk 0:04:58.7]} 2. Nf3 {[%clk 0:04:57.7]}
2... e6 {[%clk 0:04:57.4]} 3. c4 {[%clk 0:04:56.8]} 3... Bb4+ {[%clk 0:04:54.5]}
4. Nc3 {[%clk 0:04:52]} 4... a6 {[%clk 0:04:50]} 5. Qc2 {[%clk 0:04:42.7]} 5...
b5 {[%clk 0:04:48.2]} 6. c5 {[%clk 0:04:40.4]} 6... c6 {[%clk 0:04:43.7]} 7. Bf4
{[%clk 0:04:34.8]} 7... Nf6 {[%clk 0:04:39.9]} 8. e3 {[%clk 0:04:33.7]} 8... Ne4
{[%clk 0:04:38.1]} 9. Bd3 {[%clk 0:04:30.3]} 9... Nxc3 {[%clk 0:04:35.3]} 10.
bxc3 {[%clk 0:04:29.5]} 10... Ba5 {[%clk 0:04:30.4]} 11. O-O {[%clk 0:04:27.5]}
11... Nd7 {[%clk 0:04:27.1]} 12. a4 {[%clk 0:04:25.3]} 12... Nf6 {[%clk
0:04:24.6]} 13. axb5 {[%clk 0:04:22.1]} 13... axb5 {[%clk 0:04:21.3]} 14. Bd6
{[%clk 0:04:15.3]} 14... Ne4 {[%clk 0:03:55.9]} 15. Bxe4 {[%clk 0:04:10.2]}
15... dxe4 {[%clk 0:03:55.5]} 16. Ne5 {[%clk 0:04:09.3]} 16... f6 {[%clk
0:03:43.9]} 17. Nxc6 {[%clk 0:04:07]} 17... Qd7 {[%clk 0:03:27.4]} 18. Nxa5
{[%clk 0:04:05.5]} 18... e5 {[%clk 0:03:17.4]} 19. Qxe4 {[%clk 0:04:04]} 19...
g5 {[%clk 0:03:08.6]} 20. dxe5 {[%clk 0:04:02.4]} 20... Kf7 {[%clk 0:02:52.7]}
21. exf6 {[%clk 0:03:52.4]} 21... Qf5 {[%clk 0:02:42.2]} 22. Qxf5 {[%clk
0:03:48.8]} 22... Bxf5 {[%clk 0:02:41.3]} 23. Be7 {[%clk 0:03:44.5]} 23... Bd3
{[%clk 0:02:35]} 24. Rfd1 {[%clk 0:03:42.4]} 24... Be2 {[%clk 0:02:30]} 25. Rdc1
{[%clk 0:03:39.7]} 25... h5 {[%clk 0:02:20.2]} 26. Nc6 {[%clk 0:03:37.2]} 26...
Rxa1 {[%clk 0:02:16.9]} 27. Rxa1 {[%clk 0:03:35.5]} 27... Ke6 {[%clk 0:02:12.4]}
28. f3 {[%clk 0:03:33.5]} 28... Kd7 {[%clk 0:02:04.9]} 29. Nd4 {[%clk
0:03:30.1]} 29... Bc4 {[%clk 0:01:57]} 30. c6+ {[%clk 0:03:29.1]} 30... Ke8
{[%clk 0:01:53]} 31. Ra8+ {[%clk 0:03:27.4]} 1-0

[Event "Live Chess"]
[Site "Chess.com"]
[Date "2023.05.21"]
[Round "-"]
[White "Hussamalhaidar"]
[Black "wot-not"]
[Result "0-1"]
[WhiteElo "1110"]
[BlackElo "1552"]
[TimeControl "300"]
[EndTime "19:02:21 PDT"]
[Termination "wot-not won on time"]

1. b3 {[%clk 0:04:54.1]} 1... e5 {[%clk 0:04:57.8]} 2. Bb2 {[%clk 0:04:53.5]}
2... d6 {[%clk 0:04:55.8]} 3. e3 {[%clk 0:04:49.2]} 3... f5 {[%clk 0:04:54.9]}
4. d4 {[%clk 0:04:45.4]} 4... e4 {[%clk 0:04:51.8]} 5. f3 {[%clk 0:04:40.7]}
5... Nf6 {[%clk 0:04:51.4]} 6. fxe4 {[%clk 0:04:36.9]} 6... Nxe4 {[%clk
0:04:49.9]} 7. Bd3 {[%clk 0:04:30.7]} 7... Qh4+ {[%clk 0:04:48.3]} 8. g3 {[%clk
0:03:58.5]} 8... Qh6 {[%clk 0:04:34]} 9. Qf3 {[%clk 0:03:26.7]} 9... Be7 {[%clk
0:04:23]} 10. Bxe4 {[%clk 0:03:18.1]} 10... fxe4 {[%clk 0:04:22.3]} 11. Qxe4
{[%clk 0:03:13.9]} 11... O-O {[%clk 0:04:19.9]} 12. Nd2 {[%clk 0:03:00.9]} 12...
Bg5 {[%clk 0:04:15.7]} 13. Nc4 {[%clk 0:02:37.1]} 13... Nc6 {[%clk 0:04:11]} 14.
O-O-O {[%clk 0:02:27.9]} 14... Nb4 {[%clk 0:04:03.1]} 15. Kb1 {[%clk 0:02:21.8]}
15... Bf5 {[%clk 0:03:54.2]} 16. Qxb7 {[%clk 0:01:54.3]} 16... Bxc2+ {[%clk
0:03:49.5]} 17. Ka1 {[%clk 0:01:42.6]} 17... Bxd1 {[%clk 0:03:46]} 18. Qxb4
{[%clk 0:01:39]} 18... Rf1 {[%clk 0:03:32.5]} 19. Nd2 {[%clk 0:01:25.6]} 19...
Bf3+ {[%clk 0:02:52.8]} 20. Nxf1 {[%clk 0:01:23.1]} 20... Bxh1 {[%clk 0:02:52]}
21. Qc4+ {[%clk 0:01:14.2]} 21... d5 {[%clk 0:02:34.6]} 22. Qxc7 {[%clk
0:01:06.6]} 22... Bxe3 {[%clk 0:02:33.4]} 23. Nxe3 {[%clk 0:00:54.1]} 23... Qxe3
{[%clk 0:02:30.8]} 24. Nh3 {[%clk 0:00:44.2]} 24... Qe1+ {[%clk 0:02:28.8]} 25.
Qc1 {[%clk 0:00:41.4]} 25... Qxc1+ {[%clk 0:02:22.6]} 26. Bxc1 {[%clk
0:00:38.5]} 26... Rc8 {[%clk 0:02:21.2]} 27. Bf4 {[%clk 0:00:31]} 27... Rc2
{[%clk 0:02:14.7]} 28. Ng5 {[%clk 0:00:25.7]} 28... Rxh2 {[%clk 0:02:06.8]} 29.
Ne6 {[%clk 0:00:19.1]} 29... Be4 {[%clk 0:02:02.3]} 30. g4 {[%clk 0:00:16.7]}
30... Rh1+ {[%clk 0:02:00.8]} 31. Kb2 {[%clk 0:00:14]} 31... Rb1+ {[%clk
0:01:59.6]} 32. Ka3 {[%clk 0:00:12.4]} 32... Kf7 {[%clk 0:01:53.6]} 33. Nc5
{[%clk 0:00:10.5]} 33... h6 {[%clk 0:01:50]} 34. Nxe4 {[%clk 0:00:09]} 34...
dxe4 {[%clk 0:01:49.5]} 35. Be3 {[%clk 0:00:07.5]} 35... g5 {[%clk 0:01:48.3]}
36. d5 {[%clk 0:00:05.2]} 36... Rd1 {[%clk 0:01:46.9]} 37. d6 {[%clk 0:00:02.3]}
37... Rxd6 {[%clk 0:01:45.6]} 38. Bxa7 {[%clk 0:00:01.4]} 38... Ra6+ {[%clk
0:01:44.4]} 0-1

[Event "Live Chess"]
[Site "Chess.com"]
[Date "2023.05.21"]
[Round "-"]
[White "nigelst"]
[Black "whatnot126"]
[Result "0-1"]
[WhiteElo "1759"]
[BlackElo "2056"]
[TimeControl "300"]
[EndTime "19:02:28 PDT"]
[Termination "whatnot126 won by resignation"]

1. e4 {[%clk 0:04:57.8]} 1... d6 {[%clk 0:04:59]} 2. d4 {[%clk 0:04:56.1]} 2...
Nf6 {[%clk 0:04:58.7]} 3. Nc3 {[%clk 0:04:54.5]} 3... g6 {[%clk 0:04:58.3]} 4.
f4 {[%clk 0:04:52.8]} 4... Bg7 {[%clk 0:04:57.6]} 5. e5 {[%clk 0:04:51.8]} 5...
Nfd7 {[%clk 0:04:55.6]} 6. Nf3 {[%clk 0:04:49.4]} 6... O-O {[%clk 0:04:54.8]} 7.
Ng5 {[%clk 0:04:24.6]} 7... c5 {[%clk 0:04:48.9]} 8. e6 {[%clk 0:04:23.2]} 8...
Nb6 {[%clk 0:04:40.2]} 9. exf7+ {[%clk 0:04:21.3]} 9... Kh8 {[%clk 0:04:39.7]}
10. dxc5 {[%clk 0:04:16.5]} 10... dxc5 {[%clk 0:04:26.9]} 11. Qxd8 {[%clk
0:04:14.1]} 11... Rxd8 {[%clk 0:04:26.8]} 12. Bb5 {[%clk 0:04:04.3]} 12... h6
{[%clk 0:04:20.3]} 13. Nf3 {[%clk 0:04:01.5]} 13... Nc6 {[%clk 0:03:40.7]} 14.
O-O {[%clk 0:03:58.5]} 14... Be6 {[%clk 0:03:39.5]} 15. Bxc6 {[%clk 0:03:52.8]}
15... bxc6 {[%clk 0:03:38.3]} 16. Ne5 {[%clk 0:03:52.1]} 16... Nc4 {[%clk
0:03:23.9]} 17. Nxc6 {[%clk 0:03:40.5]} 17... Rf8 {[%clk 0:03:17.5]} 18. Nxe7
{[%clk 0:03:33.3]} 18... Rxf7 {[%clk 0:03:16.5]} 19. Nxg6+ {[%clk 0:03:31.6]}
19... Kh7 {[%clk 0:03:15.9]} 20. Ne5 {[%clk 0:03:25.3]} 20... Nxe5 {[%clk
0:03:02.1]} 21. fxe5 {[%clk 0:03:23.6]} 21... Rxf1+ {[%clk 0:02:58.8]} 22. Kxf1
{[%clk 0:03:22.1]} 22... Bxe5 {[%clk 0:02:58.7]} 23. Kg1 {[%clk 0:03:15.6]}
23... Bd4+ {[%clk 0:02:40.8]} 24. Kh1 {[%clk 0:03:13.7]} 24... Rf8 {[%clk
0:02:37.9]} 25. Bd2 {[%clk 0:02:51.7]} 25... Rf2 {[%clk 0:02:35.2]} 26. Ne4
{[%clk 0:02:49.1]} 26... Re2 {[%clk 0:02:32.9]} 27. Re1 {[%clk 0:02:47]} 27...
Rxe1+ {[%clk 0:02:26.5]} 28. Bxe1 {[%clk 0:02:45.6]} 28... Bxb2 {[%clk
0:02:24.7]} 29. Nxc5 {[%clk 0:02:40.9]} 29... Bxa2 {[%clk 0:02:23.3]} 30. Na4
{[%clk 0:02:28.4]} 30... Be5 {[%clk 0:02:20.9]} 31. Bc3 {[%clk 0:02:18.6]} 31...
Bf4 {[%clk 0:02:12.2]} 32. Bd4 {[%clk 0:02:10.5]} 32... a6 {[%clk 0:02:10.3]}
33. Nc5 {[%clk 0:02:04.7]} 33... Bc4 {[%clk 0:02:09.6]} 34. c3 {[%clk
0:02:01.5]} 34... Kg6 {[%clk 0:02:07.3]} 35. Nd7 {[%clk 0:01:52.9]} 35... Kf5
{[%clk 0:02:02.7]} 36. Nc5 {[%clk 0:01:47.4]} 36... Bd2 {[%clk 0:01:59.1]} 37.
Kg1 {[%clk 0:01:42.7]} 37... Kg6 {[%clk 0:01:57.9]} 38. Kf2 {[%clk 0:01:40.8]}
38... Kf7 {[%clk 0:01:56.7]} 39. Ne4 {[%clk 0:01:36.5]} 39... Bf4 {[%clk
0:01:53.3]} 40. g3 {[%clk 0:01:34.9]} 40... Bc7 {[%clk 0:01:52.3]} 41. Ke3
{[%clk 0:01:29.9]} 41... a5 {[%clk 0:01:51.6]} 42. Nc5 {[%clk 0:01:24.7]} 42...
Ke7 {[%clk 0:01:47.8]} 43. Nd3 {[%clk 0:01:13.6]} 43... a4 {[%clk 0:01:41.4]}
44. Nb2 {[%clk 0:00:59.5]} 44... a3 {[%clk 0:01:35.5]} 45. Nxc4 {[%clk
0:00:34.5]} 45... a2 {[%clk 0:01:34.6]} 46. Bc5+ {[%clk 0:00:27]} 46... Ke8
{[%clk 0:01:31.1]} 47. Nd2 {[%clk 0:00:16.9]} 47... a1=Q {[%clk 0:01:29.5]} 48.
Nb3 {[%clk 0:00:15.7]} 48... Qxc3+ {[%clk 0:01:28.6]} 0-1

[Event "Live Chess"]
[Site "Chess.com"]
[Date "2023.05.21"]
[Round "-"]
[White "blowerd"]
[Black "worldchessleaguelive"]
[Result "1-0"]
[WhiteElo "1354"]
[BlackElo "1355"]
[TimeControl "300"]
[EndTime "19:02:30 PDT"]
[Termination "blowerd won by resignation"]

1. e4 {[%clk 0:04:58.3]} 1... d5 {[%clk 0:04:58.4]} 2. exd5 {[%clk 0:04:55.5]}
2... Qxd5 {[%clk 0:04:56.8]} 3. Nc3 {[%clk 0:04:53.9]} 3... Qd8 {[%clk
0:04:50.6]} 4. d4 {[%clk 0:04:51.9]} 4... Nf6 {[%clk 0:04:44.5]} 5. Bc4 {[%clk
0:04:49.7]} 5... e6 {[%clk 0:04:43.3]} 6. Bg5 {[%clk 0:04:46.4]} 6... Be7 {[%clk
0:04:42.2]} 7. Qf3 {[%clk 0:04:45.2]} 7... h6 {[%clk 0:04:41.3]} 8. Bxf6 {[%clk
0:04:43.1]} 8... Bxf6 {[%clk 0:04:39.9]} 9. Nge2 {[%clk 0:04:37.3]} 9... c6
{[%clk 0:04:38.9]} 10. O-O-O {[%clk 0:04:34.7]} 10... b5 {[%clk 0:04:37.9]} 11.
Bb3 {[%clk 0:04:32.8]} 11... a5 {[%clk 0:04:36.2]} 12. a3 {[%clk 0:04:29.8]}
12... a4 {[%clk 0:04:34]} 13. Ba2 {[%clk 0:04:28]} 13... Bb7 {[%clk 0:04:31.9]}
14. Nxb5 {[%clk 0:04:20.7]} 14... Ra5 {[%clk 0:04:14.6]} 15. Nbc3 {[%clk
0:04:09.1]} 15... Rf5 {[%clk 0:04:13]} 16. Qg3 {[%clk 0:03:28.2]} 16... Rg5
{[%clk 0:04:00.5]} 17. Qe3 {[%clk 0:03:00.7]} 17... Rxg2 {[%clk 0:03:55.2]} 18.
Kb1 {[%clk 0:02:53.5]} 18... Qa5 {[%clk 0:03:19.9]} 19. Nf4 {[%clk 0:02:37.7]}
19... Rg5 {[%clk 0:03:01.4]} 20. Rhg1 {[%clk 0:02:32.7]} 20... O-O {[%clk
0:02:54.2]} 21. Rxg5 {[%clk 0:02:27.1]} 21... Bxg5 {[%clk 0:02:51.4]} 22. Qg3
{[%clk 0:02:18.2]} 22... Nd7 {[%clk 0:02:35.3]} 23. Nxe6 {[%clk 0:02:10.5]}
23... fxe6 {[%clk 0:02:16.8]} 24. Bxe6+ {[%clk 0:02:08.9]} 24... Kh7 {[%clk
0:02:15.5]} 25. Bxd7 {[%clk 0:02:06.2]} 25... Ba6 {[%clk 0:02:01]} 26. Ne4
{[%clk 0:01:49.5]} 26... Be2 {[%clk 0:01:37.5]} 27. Nxg5+ {[%clk 0:01:37.6]}
27... hxg5 {[%clk 0:01:35.3]} 28. Qh3+ {[%clk 0:01:28.7]} 28... Kg6 {[%clk
0:01:34.1]} 29. Rc1 {[%clk 0:01:14.2]} 29... Rxf2 {[%clk 0:01:27.1]} 30. Qe6+
{[%clk 0:01:07.4]} 30... Rf6 {[%clk 0:01:25.9]} 31. Qxe2 {[%clk 0:01:01.2]} 1-0